[Event "8th Mersin Open 2024"]
[Site "Mersin"]
[Date "2024.11.11"]
[Round "2"]
[White "Isik, Engin Yasar"]
[Black "Topuz, Mirac Melih"]
[Result "0-1"]
[ECO "B40"]
[WhiteElo "2172"]
[BlackElo "2097"]
[Annotator "RC"]
[PlyCount "80"]
[EventDate "2024.11.10"]
[EventType "swiss"]
[EventCountry "TUR"]
[SourceTitle "playchess.com"]
[Source "ChessBase"]
[SourceQuality "1"]
[TimeControl "5400+30"]

1. e4 {[%emt 0:02:00]} c5 {[%emt 0:01:00]} 2. Nf3 {[%emt 0:00:30]} e6 {[%emt 0:00:00]} 3. b3 {[%emt 0:00:00]} Nc6 {[%emt 0:02:00]} 4. Bb2 {[%emt 0:00:00]} Qc7 {[%emt 0:02:30]} 5. Nc3 {[%emt 0:03:30]} a6 {[%emt 0:04:30]} 6. Qe2 {[%emt 0:01:30]} d6 {[%emt 0:04:30]} 7. O-O-O {[%emt 0:02:30]} Nf6 {[%emt 0:03:30]} 8. d4 {[%emt 0:01:30]} cxd4 {[%emt 0:00:30]} 9. Nxd4 {[%emt 0:00:00]} Be7 {[%emt 0:02:30]} 10. Kb1 {[%emt 0:04:00]} O-O {[%emt 0:07:30]} 11. Nxc6 {[%emt 0:04:30]} Qxc6 {[%emt 0:01:30]} 12. g4 {[%emt 0:00:00]} b5 {[%emt 0:10:30]} 13. g5 {[%emt 0:06:00]} Nd7 {[%emt 0:04:30]} 14. f4 {[%emt 0:00:00]} Bb7 {[%emt 0:01:30]} 15. Rd3 {[%emt 0:31:00]} b4 {[%emt 0:31:30]} 16. Qh5 {[%emt 0:10:30]} bxc3 {[%emt 0:06:20]} 17. Rh3 {[%emt 0:11:30]} h6 {[%emt 0:00:07]} 18. Bxc3 {[%emt 0:11:11]} e5 {[%emt 0:03:42]} 19. Bc4 {[%emt 0:05:45]} Qxe4 {[%emt 0:03:54]} 20. Rg1 {[%emt 0:01:27]} Qf5 {[%emt 0:06:17]} 21. Bd3 {[%emt 0:00:01]} Be4 {[%emt 0:01:37]} 22. Be2 {[%emt 0:00:01]} Qg6 {[%emt 0:00:20]} 23. Qh4 {[%emt 0:01:22]} Rac8 {[%emt 0:01:09]} 24. Bh5 {[%emt 0:00:23]} Qf5 {[%emt 0:00:28]} 25. Bg4 {[%emt 0:02:00]} Qxf4 {[%emt 0:00:30]} 26. Qe1 {[%emt 0:01:07]} f5 {[%emt 0:00:33]} 27. Bd1 {[%emt 0:01:12]} Rxc3 {[%emt 0:00:23]} 28. Rxc3 {[%emt 0:00:43]} Bxg5 {[%emt 0:00:07]} 29. Be2 {[%emt 0:00:17]} Qd2 {[%emt 0:00:05]} 30. Qxd2 {[%emt 0:00:17]} Bxd2 {[%emt 0:00:30]} 31. Rc7 {[%emt 0:00:00]} Be3 {[%emt 0:00:14]} 32. Rd1 {[%emt 0:00:44]} Nf6 {[%emt 0:01:12]} 33. Rxd6 {[%emt 0:00:02]} f4 {[%emt 0:00:53]} 34. Rxa6 {[%emt 0:00:52]} f3 {[%emt 0:00:53]} 35. Bf1 {[%emt 0:00:01]} Nd5 {[%emt 0:00:00]} 36. Rd7 {[%emt 0:00:30]} Nb4 {[%emt 0:00:21]} 37. Ra5 {[%emt 0:00:55]} Bxc2+ {[%emt 0:00:30]} 38. Kb2 {[%emt 0:00:30]} Bd4+ {[%emt 0:00:00]} 39. Rxd4 {[%emt 0:00:56]} exd4 {[%emt 0:00:12]} 40. a3 {[%emt 0:00:30]} Bd3 {[%emt 0:00:00]} 0-1

[Event "8th Mersin Open 2024"]
[Site "Mersin"]
[Date "2024.11.11"]
[Round "2"]
[White "Atis, Hasan"]
[Black "Ozen, Sadettin Alperen"]
[Result "1-0"]
[ECO "B30"]
[WhiteElo "2167"]
[BlackElo "2027"]
[Annotator "RC"]
[PlyCount "59"]
[EventDate "2024.11.10"]
[EventType "swiss"]
[EventCountry "TUR"]
[SourceTitle "playchess.com"]
[Source "ChessBase"]
[SourceQuality "1"]
[TimeControl "5400+30"]

1. e4 {[%emt 0:01:00]} c5 {[%emt 0:01:00]} 2. Nf3 {[%emt 0:00:30]} Nc6 {[%emt 0:00:00]} 3. Bb5 {[%emt 0:00:00]} Nf6 {[%emt 0:00:00]} 4. Nc3 {[%emt 0:00:00]} Qc7 {[%emt 0:00:30]} 5. O-O {[%emt 0:00:30]} Nd4 {[%emt 0:00:30]} 6. Re1 {[%emt 0:00:00]} a6 {[%emt 0:00:00]} 7. Bf1 {[%emt 0:00:00]} d6 {[%emt 0:00:00]} 8. Nxd4 {[%emt 0:00:30]} cxd4 {[%emt 0:04:30]} 9. Ne2 {[%emt 0:00:00]} Nxe4 {[%emt 0:06:30]} 10. Nxd4 {[%emt 0:02:00]} Nf6 {[%emt 0:00:30]} 11. c3 {[%emt 0:05:30]} e5 {[%emt 0:15:30]} 12. Nc2 {[%emt 0:01:30]} Be7 {[%emt 0:03:30]} 13. d4 {[%emt 0:02:30]} O-O {[%emt 0:00:30]} 14. Bd3 {[%emt 0:12:30]} b5 {[%emt 0:09:30]} 15. Bg5 {[%emt 0:08:30]} Bb7 {[%emt 0:05:30]} 16. Qd2 {[%emt 0:02:30]} e4 {[%emt 0:05:30]} 17. Bxf6 {[%emt 0:01:30]} Bxf6 {[%emt 0:02:30]} 18. Bxe4 {[%emt 0:00:30]} Rfe8 {[%emt 0:00:30]} 19. Qd3 {[%emt 0:02:30]} Bxe4 {[%emt 0:04:30]} 20. Rxe4 {[%emt 0:00:30]} d5 {[%emt 0:00:30]} 21. Re2 {[%emt 0:08:30]} Rxe2 {[%emt 0:08:30]} 22. Qxe2 {[%emt 0:00:30]} Qc6 {[%emt 0:00:00]} 23. Nb4 {[%emt 0:04:30]} Qd6 {[%emt 0:07:00]} 24. a4 {[%emt 0:12:30]} a5 {[%emt 0:18:13]} 25. axb5 {[%emt 0:01:30]} Bxd4 {[%emt 0:00:28]} 26. Qd2 {[%emt 0:07:30]} Be5 {[%emt 0:03:21]} 27. Qxd5 {[%emt 0:06:30]} Bxh2+ {[%emt 0:00:34]} 28. Kf1 {[%emt 0:00:00]} Qxd5 {[%emt 0:01:48]} 29. Nxd5 {[%emt 0:00:00]} Bd6 {[%emt 0:00:00]} 30. Ra4 {[%emt 0:02:22]} 1-0

[Event "8th Mersin Open 2024"]
[Site "Mersin"]
[Date "2024.11.11"]
[Round "2"]
[White "Biriya, Mohammadamin"]
[Black "Shafei, Hamid"]
[Result "1/2-1/2"]
[ECO "E19"]
[WhiteElo "2139"]
[BlackElo "2018"]
[Annotator "RC"]
[PlyCount "36"]
[EventDate "2024.11.10"]
[EventType "swiss"]
[EventCountry "TUR"]
[SourceTitle "playchess.com"]
[Source "ChessBase"]
[SourceQuality "1"]
[TimeControl "5400+30"]

1. d4 {[%emt 0:01:00]} Nf6 {[%emt 0:08:00]} 2. c4 {[%emt 0:00:00]} e6 {[%emt 0:00:00]} 3. Nf3 {[%emt 0:00:00]} b6 {[%emt 0:01:00]} 4. g3 {[%emt 0:00:30]} Bb7 {[%emt 0:00:30]} 5. Bg2 {[%emt 0:00:30]} Be7 {[%emt 0:00:00]} 6. O-O {[%emt 0:00:00]} O-O {[%emt 0:00:00]} 7. Nc3 {[%emt 0:01:00]} Ne4 {[%emt 0:00:00]} 8. Qc2 {[%emt 0:03:30]} f5 {[%emt 0:00:00]} 9. Rd1 {[%emt 0:00:30]} Nxc3 {[%emt 0:00:00]} 10. Qxc3 {[%emt 0:00:30]} Bf6 {[%emt 0:00:00]} 11. Ne5 {[%emt 0:13:30]} Bxg2 {[%emt 0:01:30]} 12. Kxg2 {[%emt 0:01:30]} d6 {[%emt 0:00:00]} 13. Nf3 {[%emt 0:06:30]} Nd7 {[%emt 0:00:00]} 14. Qc2 {[%emt 0:01:30]} Qe8 {[%emt 0:01:30]} 15. Bd2 {[%emt 0:11:30]} Qh5 {[%emt 0:03:30]} 16. Bc3 {[%emt 0:01:30]} g5 {[%emt 0:02:30]} 17. h3 {[%emt 0:08:30]} g4 {[%emt 0:08:30]} 18. Ng1 {[%emt 0:07:30]} Bg7 {[%emt 0:01:30]} 1/2-1/2

[Event "8th Mersin Open 2024"]
[Site "Mersin"]
[Date "2024.11.11"]
[Round "2"]
[White "Hasirci, Ozgur Deniz"]
[Black "Annaberdiyev, Meylis"]
[Result "0-1"]
[ECO "B40"]
[WhiteElo "2128"]
[BlackElo "2443"]
[Annotator "RC"]
[PlyCount "95"]
[EventDate "2024.11.10"]
[EventType "swiss"]
[EventCountry "TUR"]
[SourceTitle "playchess.com"]
[Source "ChessBase"]
[SourceQuality "1"]
[TimeControl "5400+30"]

1. e4 {[%emt 0:01:00]} c5 {[%emt 0:01:00]} 2. Nf3 {[%emt 0:00:30]} e6 {[%emt 0:00:30]} 3. Nc3 {[%emt 0:00:00]} Nc6 {[%emt 0:00:00]} 4. d3 {[%emt 0:00:00]} d5 {[%emt 0:02:00]} 5. g3 {[%emt 0:02:30]} Be7 {[%emt 0:00:00]} 6. Bg2 {[%emt 0:00:00]} d4 {[%emt 0:05:00]} 7. Ne2 {[%emt 0:02:00]} e5 {[%emt 0:00:30]} 8. h4 {[%emt 0:05:30]} Nf6 {[%emt 0:01:30]} 9. Bg5 {[%emt 0:04:30]} Ng4 {[%emt 0:03:30]} 10. Bxe7 {[%emt 0:01:30]} Qxe7 {[%emt 0:00:00]} 11. Qd2 {[%emt 0:00:30]} h6 {[%emt 0:01:00]} 12. Nh2 {[%emt 0:03:30]} h5 {[%emt 0:05:30]} 13. Nf1 {[%emt 0:05:30]} g6 {[%emt 0:11:30]} 14. f3 {[%emt 0:04:30]} Nh6 {[%emt 0:01:30]} 15. Qg5 {[%emt 0:02:30]} Be6 {[%emt 0:01:30]} 16. Bh3 {[%emt 0:00:30]} Bxh3 {[%emt 0:01:30]} 17. Qxe7+ {[%emt 0:01:30]} Kxe7 {[%emt 0:00:30]} 18. Rxh3 {[%emt 0:00:30]} f5 {[%emt 0:04:30]} 19. Nd2 {[%emt 0:02:30]} Rhf8 {[%emt 0:00:30]} 20. O-O-O {[%emt 0:04:30]} fxe4 {[%emt 0:01:30]} 21. dxe4 {[%emt 0:00:30]} Rad8 {[%emt 0:00:30]} 22. Rhh1 {[%emt 0:04:30]} b5 {[%emt 0:05:30]} 23. Rdf1 {[%emt 0:10:30]} c4 {[%emt 0:10:30]} 24. g4 {[%emt 0:03:30]} hxg4 {[%emt 0:03:30]} 25. h5 {[%emt 0:00:30]} g5 {[%emt 0:01:30]} 26. Rhg1 {[%emt 0:00:30]} Nb4 {[%emt 0:03:30]} 27. a3 {[%emt 0:04:30]} d3 {[%emt 0:01:30]} 28. Nc3 {[%emt 0:00:30]} Nxc2 {[%emt 0:00:30]} 29. Nxb5 {[%emt 0:00:30]} Nd4 {[%emt 0:02:30]} 30. Nxd4 {[%emt 0:00:30]} Rxd4 {[%emt 0:00:30]} 31. fxg4 {[%emt 0:00:30]} Rc8 {[%emt 0:01:30]} 32. Nf3 {[%emt 0:03:30]} Rxe4 {[%emt 0:00:30]} 33. Re1 {[%emt 0:00:30]} Rxe1+ {[%emt 0:00:30]} 34. Rxe1 {[%emt 0:00:00]} Nxg4 {[%emt 0:00:00]} 35. Re4 {[%emt 0:00:00]} Rf8 {[%emt 0:02:00]} 36. Nxe5 {[%emt 0:02:30]} Rf1+ {[%emt 0:06:30]} 37. Kd2 {[%emt 0:00:30]} Nxe5 {[%emt 0:00:30]} 38. Rxe5+ {[%emt 0:00:30]} Kf6 {[%emt 0:00:30]} 39. Rc5 {[%emt 0:00:30]} Rf2+ {[%emt 0:00:30]} 40. Ke3 {[%emt 0:01:30]} Re2+ {[%emt 0:01:30]} 41. Kf3 {[%emt 0:00:00]} Re1 {[%emt 0:04:01]} 42. Rd5 {[%emt 0:02:00]} Rb1 {[%emt 0:00:39]} 43. h6 {[%emt 0:05:30]} Rxb2 {[%emt 0:01:42]} 44. h7 {[%emt 0:00:30]} Rh2 {[%emt 0:00:20]} 45. Rd6+ {[%emt 0:01:30]} Ke5 {[%emt 0:00:35]} 46. Rd7 {[%emt 0:00:30]} Ke6 {[%emt 0:00:48]} 47. Kg3 {[%emt 0:00:30]} Rxh7 {[%emt 0:02:16]} 48. Rxh7 {[%emt 0:00:30]} 0-1

[Event "8th Mersin Open 2024"]
[Site "Mersin"]
[Date "2024.11.11"]
[Round "2"]
[White "Ererdem, Gani Eren"]
[Black "Ebrahimi Herab, Hamidreza"]
[Result "1/2-1/2"]
[ECO "D72"]
[WhiteElo "2066"]
[BlackElo "2386"]
[Annotator "ChessBase"]
[PlyCount "139"]
[EventDate "2024.11.10"]
[EventType "swiss"]
[EventCountry "TUR"]
[SourceTitle "playchess.com"]
[Source "ChessBase"]
[SourceQuality "1"]
[TimeControl "5400+30"]

1. d4 {[%emt 0:01:00]} Nf6 {[%emt 0:01:00]} 2. c4 {[%emt 0:00:00]} g6 {[%emt 0:00:30]} 3. g3 {[%emt 0:01:00]} Bg7 {[%emt 0:00:30]} 4. Bg2 {[%emt 0:00:30]} d5 {[%emt 0:00:30]} 5. cxd5 {[%emt 0:01:30]} Nxd5 {[%emt 0:00:30]} 6. e4 {[%emt 0:00:00]} Nb6 {[%emt 0:00:00]} 7. Ne2 {[%emt 0:00:00]} c5 {[%emt 0:01:00]} 8. d5 {[%emt 0:00:30]} e6 {[%emt 0:01:30]} 9. O-O {[%emt 0:00:30]} exd5 {[%emt 0:00:30]} 10. exd5 {[%emt 0:00:30]} O-O {[%emt 0:00:30]} 11. Nec3 {[%emt 0:00:30]} Na6 {[%emt 0:01:30]} 12. Nd2 {[%emt 0:00:30]} Bf5 {[%emt 0:02:30]} 13. Nde4 {[%emt 0:00:00]} h6 {[%emt 0:03:30]} 14. d6 {[%emt 0:00:00]} Re8 {[%emt 0:04:30]} 15. Bf4 {[%emt 0:00:30]} g5 {[%emt 0:05:30]} 16. Be3 {[%emt 0:00:30]} Qc8 {[%emt 0:17:30]} 17. h4 {[%emt 0:11:30]} gxh4 {[%emt 0:13:30]} 18. Qh5 {[%emt 0:00:30]} h3 {[%emt 0:00:00]} 19. Bxh6 {[%emt 0:46:30]} Bg6 {[%emt 0:13:00]} 20. Qg5 {[%emt 0:02:30]} Qf5 {[%emt 0:06:30]} 21. Bh1 {[%emt 0:11:30]} Bd4 {[%emt 0:06:30]} 22. Qxf5 {[%emt 0:14:51]} Bxf5 {[%emt 0:00:00]} 23. Bg5 {[%emt 0:00:00]} Kg7 {[%emt 0:01:30]} 24. Rad1 {[%emt 0:03:20]} Bg4 {[%emt 0:02:38]} 25. Rxd4 {[%emt 0:00:40]} cxd4 {[%emt 0:00:30]} 26. Bf6+ {[%emt 0:00:00]} Kg6 {[%emt 0:00:32]} 27. Bxd4 {[%emt 0:00:00]} f5 {[%emt 0:00:16]} 28. Nf6 {[%emt 0:00:58]} h2+ {[%emt 0:00:07]} 29. Kg2 {[%emt 0:01:16]} Re6 {[%emt 0:00:30]} 30. Nxg4 {[%emt 0:00:30]} fxg4 {[%emt 0:00:03]} 31. Nb5 {[%emt 0:01:57]} Nc4 {[%emt 0:00:48]} 32. Kxh2 {[%emt 0:00:42]} Nxd6 {[%emt 0:00:43]} 33. Nxd6 {[%emt 0:00:30]} Rxd6 {[%emt 0:00:00]} 34. Bxb7 {[%emt 0:00:00]} Rad8 {[%emt 0:00:15]} 35. Be3 {[%emt 0:00:23]} Kf5 {[%emt 0:04:18]} 36. b3 {[%emt 0:02:15]} Nb4 {[%emt 0:00:28]} 37. Rc1 {[%emt 0:00:55]} Nd5 {[%emt 0:01:53]} 38. Bxa7 {[%emt 0:00:50]} R6d7 {[%emt 0:00:30]} 39. Bxd5 {[%emt 0:00:30]} Rxa7 {[%emt 0:00:30]} 40. Bc4 {[%emt 0:00:30]} Rxa2 {[%emt 0:00:00]} 41. Kg2 {[%emt 0:00:16]} Rdd2 {[%emt 0:00:09]} 42. Rf1 {[%emt 0:00:16]} Kg5 {[%emt 0:00:57]} 43. Be6 {[%emt 0:00:51]} Ra6 {[%emt 0:00:11]} 44. Bc4 {[%emt 0:00:40]} Rf6 {[%emt 0:00:04]} 45. Bg8 {[%emt 0:00:07]} Kf5 {[%emt 0:00:26]} 46. Bc4 {[%emt 0:00:28]} Kg5 {[%emt 0:00:23]} 47. Kg1 {[%emt 0:00:29]} Rf8 {[%emt 0:00:39]} 48. Kg2 {[%emt 0:00:09]} Rd6 {[%emt 0:00:06]} 49. Re1 {[%emt 0:00:34]} Rh8 {[%emt 0:00:49]} 50. Re5+ {[%emt 0:00:17]} Kg6 {[%emt 0:00:49]} 51. Re4 Kf5 52. Rf4+ Ke5 53. Rxg4 Rf8 54. Rg5+ Ke4 55. Rg7 {[%emt 0:03:01]} Rd2 {[%emt 0:03:40]} 56. Re7+ {[%emt 0:00:35]} Kf5 {[%emt 0:00:15]} 57. Re3 Kg5 58. Be2 Rb2 59. f4+ Kf5 60. Kf3 Kf6 61. g4 Rb8 62. g5+ Kg6 63. Bc4 Rf8 64. Re6+ Kg7 65. Re7+ Kh8 66. Kg3 Rb1 67. Re4 Rg1+ 68. Kh2 Rg4 69. Kh3 Rfxf4 70. Rxf4 1/2-1/2

[Event "8th Mersin Open 2024"]
[Site "Mersin"]
[Date "2024.11.11"]
[Round "2"]
[White "Khalili, Saeid"]
[Black "Pour Agha Bala, Amirreza"]
[Result "1-0"]
[ECO "A55"]
[WhiteElo "2066"]
[BlackElo "2483"]
[Annotator "RC"]
[PlyCount "111"]
[EventDate "2024.11.10"]
[EventType "swiss"]
[EventCountry "TUR"]
[SourceTitle "playchess.com"]
[Source "ChessBase"]
[SourceQuality "1"]
[TimeControl "5400+30"]

1. d4 {[%emt 0:02:00]} d6 {[%emt 0:01:00]} 2. Nf3 {[%emt 0:00:30]} Nf6 {[%emt 0:00:30]} 3. c4 {[%emt 0:00:30]} Nbd7 {[%emt 0:00:00]} 4. Nc3 {[%emt 0:00:30]} e5 {[%emt 0:00:00]} 5. e4 {[%emt 0:01:30]} Be7 {[%emt 0:00:00]} 6. Be2 {[%emt 0:00:30]} c6 {[%emt 0:00:00]} 7. O-O {[%emt 0:00:30]} Qc7 {[%emt 0:00:30]} 8. h3 {[%emt 0:00:30]} Nf8 {[%emt 0:00:30]} 9. Be3 {[%emt 0:01:30]} Ng6 {[%emt 0:00:30]} 10. Re1 {[%emt 0:00:00]} O-O {[%emt 0:00:00]} 11. Qc2 {[%emt 0:00:00]} Re8 {[%emt 0:01:00]} 12. a3 {[%emt 0:01:30]} Bf8 {[%emt 0:00:30]} 13. d5 {[%emt 0:03:30]} Bd7 {[%emt 0:03:30]} 14. Rac1 {[%emt 0:01:30]} c5 {[%emt 0:04:30]} 15. b4 {[%emt 0:01:30]} b6 {[%emt 0:00:00]} 16. Nd2 {[%emt 0:05:30]} h6 {[%emt 0:03:00]} 17. Qb3 {[%emt 0:06:30]} Nh7 {[%emt 0:00:30]} 18. Bg4 {[%emt 0:07:30]} Bxg4 {[%emt 0:03:30]} 19. hxg4 {[%emt 0:00:30]} Be7 {[%emt 0:00:30]} 20. Nf1 {[%emt 0:01:30]} Nf6 {[%emt 0:06:30]} 21. bxc5 {[%emt 0:08:30]} bxc5 {[%emt 0:00:30]} 22. f3 {[%emt 0:01:30]} h5 {[%emt 0:01:30]} 23. gxh5 {[%emt 0:02:30]} Nxh5 {[%emt 0:00:00]} 24. Rb1 {[%emt 0:01:30]} Qd8 {[%emt 0:02:00]} 25. Ne2 {[%emt 0:00:30]} Bh4 {[%emt 0:03:30]} 26. g3 {[%emt 0:06:30]} Bg5 {[%emt 0:00:30]} 27. Kf2 {[%emt 0:01:30]} Nf8 {[%emt 0:02:30]} 28. Bxg5 {[%emt 0:01:30]} Qxg5 {[%emt 0:00:00]} 29. Qe3 {[%emt 0:00:00]} Qd8 {[%emt 0:01:00]} 30. Rb5 {[%emt 0:01:00]} Nd7 {[%emt 0:00:30]} 31. a4 {[%emt 0:06:30]} a6 {[%emt 0:07:30]} 32. Rb7 {[%emt 0:01:30]} Nhf6 {[%emt 0:00:30]} 33. Qc3 {[%emt 0:03:30]} g6 {[%emt 0:00:00]} 34. Reb1 {[%emt 0:00:30]} Kg7 {[%emt 0:00:00]} 35. Qd2 {[%emt 0:01:30]} Rh8 {[%emt 0:00:30]} 36. Ng1 {[%emt 0:01:30]} Rh5 {[%emt 0:02:30]} 37. Kg2 {[%emt 0:00:30]} Nh7 {[%emt 0:02:30]} 38. Nh3 {[%emt 0:01:30]} Nhf6 {[%emt 0:05:30]} 39. Nf2 {[%emt 0:02:30]} Rh8 {[%emt 0:01:30]} 40. Ne3 {[%emt 0:01:30]} Rh5 {[%emt 0:00:00]} 41. Nf1 {[%emt 0:00:30]} Rh6 {[%emt 0:04:00]} 42. R1b2 {[%emt 0:01:30]} Nh5 {[%emt 0:01:30]} 43. Rb1 {[%emt 0:01:30]} Rh8 {[%emt 0:00:30]} 44. R1b2 {[%emt 0:00:30]} Rb8 {[%emt 0:00:30]} 45. Rb1 {[%emt 0:03:30]} Rxb7 {[%emt 0:01:30]} 46. Rxb7 {[%emt 0:00:30]} Nhf6 {[%emt 0:00:00]} 47. Qc3 {[%emt 0:01:30]} Re8 {[%emt 0:05:00]} 48. Ne3 {[%emt 0:00:30]} Nh7 {[%emt 0:00:30]} 49. Ra7 {[%emt 0:01:30]} Nb8 {[%emt 0:00:30]} 50. Qb3 {[%emt 0:00:30]} Nf6 {[%emt 0:00:30]} 51. Neg4 {[%emt 0:01:09]} Nfd7 {[%emt 0:01:30]} 52. Rb7 {[%emt 0:00:40]} Qa5 {[%emt 0:00:30]} 53. Kf1 {[%emt 0:04:07]} Qd8 {[%emt 0:02:30]} 54. Kg2 {[%emt 0:00:14]} Qg5 {[%emt 0:00:30]} 55. Qe3 {[%emt 0:00:40]} Qh5 {[%emt 0:01:30]} 56. Rb1 {[%emt 0:00:07]} 1-0

[Event "8th Mersin Open 2024"]
[Site "Mersin"]
[Date "2024.11.11"]
[Round "2"]
[White "Primbetov, Kazbek"]
[Black "Mammadova, Gulnar"]
[Result "1/2-1/2"]
[ECO "B12"]
[WhiteElo "2059"]
[BlackElo "2328"]
[Annotator "RC"]
[PlyCount "83"]
[EventDate "2024.11.10"]
[EventType "swiss"]
[EventCountry "TUR"]
[SourceTitle "playchess.com"]
[Source "ChessBase"]
[SourceQuality "1"]
[TimeControl "5400+30"]

1. e4 {[%emt 0:01:00]} c6 {[%emt 0:01:00]} 2. d4 {[%emt 0:06:30]} d5 {[%emt 0:00:30]} 3. e5 {[%emt 0:00:00]} Bf5 {[%emt 0:00:30]} 4. h4 {[%emt 0:05:00]} h5 {[%emt 0:00:30]} 5. Nf3 {[%emt 0:00:30]} e6 {[%emt 0:00:30]} 6. c4 {[%emt 0:00:30]} Nd7 {[%emt 0:06:30]} 7. Nc3 {[%emt 0:01:30]} Ne7 {[%emt 0:06:30]} 8. Bg5 {[%emt 0:06:30]} f6 {[%emt 0:03:30]} 9. Bf4 {[%emt 0:06:30]} Ng6 {[%emt 0:04:30]} 10. Bg3 {[%emt 0:00:30]} fxe5 {[%emt 0:09:30]} 11. dxe5 {[%emt 0:00:30]} dxc4 {[%emt 0:06:30]} 12. Bxc4 {[%emt 0:04:30]} Nb6 {[%emt 0:00:30]} 13. Be2 {[%emt 0:01:30]} Nd5 {[%emt 0:06:30]} 14. Nd4 {[%emt 0:28:30]} Bb4 {[%emt 0:10:30]} 15. O-O {[%emt 0:10:30]} Bxc3 {[%emt 0:05:30]} 16. Nxf5 {[%emt 0:00:30]} exf5 {[%emt 0:05:30]} 17. Bxh5 {[%emt 0:01:30]} Nde7 {[%emt 0:02:30]} 18. bxc3 {[%emt 0:05:19]} Qxd1 {[%emt 0:00:30]} 19. Bxd1 {[%emt 0:00:00]} Nxh4 {[%emt 0:01:30]} 20. c4 {[%emt 0:13:18]} O-O-O {[%emt 0:02:30]} 21. f4 {[%emt 0:00:57]} Nhg6 {[%emt 0:03:30]} 22. Bb3 {[%emt 0:04:06]} c5 {[%emt 0:00:30]} 23. Bf2 {[%emt 0:00:32]} b6 {[%emt 0:01:30]} 24. g3 {[%emt 0:00:08]} Nf8 {[%emt 0:01:30]} 25. a4 {[%emt 0:01:26]} Nc6 {[%emt 0:00:30]} 26. Bc2 {[%emt 0:00:30]} g6 {[%emt 0:00:30]} 27. a5 {[%emt 0:00:17]} Ne6 {[%emt 0:02:23]} 28. axb6 {[%emt 0:00:30]} axb6 {[%emt 0:00:00]} 29. Ba4 {[%emt 0:01:03]} Na5 {[%emt 0:01:18]} 30. Rfd1 {[%emt 0:00:27]} Kc7 {[%emt 0:01:05]} 31. Bb5 {[%emt 0:00:57]} Rxd1+ {[%emt 0:05:41]} 32. Rxd1 {[%emt 0:00:30]} Rd8 {[%emt 0:00:30]} 33. Ra1 {[%emt 0:00:24]} Rd3 {[%emt 0:02:11]} 34. Kg2 {[%emt 0:00:08]} g5 {[%emt 0:02:44]} 35. fxg5 {[%emt 0:01:05]} Nxg5 {[%emt 0:00:01]} 36. Bxc5 {[%emt 0:00:20]} Ne4 {[%emt 0:02:17]} 37. Bd6+ {[%emt 0:00:14]} Nxd6 {[%emt 0:00:55]} 38. exd6+ {[%emt 0:00:01]} Rxd6 {[%emt 0:00:00]} 39. Rf1 {[%emt 0:01:14]} Rd4 {[%emt 0:00:45]} 40. Rxf5 {[%emt 0:01:02]} Nxc4 {[%emt 0:00:05]} 41. Rf7+ {[%emt 0:00:00]} Kd6 {[%emt 0:01:09]} 42. Rd7+ {[%emt 0:00:16]} 1/2-1/2

[Event "8th Mersin Open 2024"]
[Site "Mersin"]
[Date "2024.11.11"]
[Round "2"]
[White "Turker, Esat Tuna"]
[Black "Sanz Wawer, Daniel"]
[Result "0-1"]
[ECO "E11"]
[WhiteElo "2050"]
[BlackElo "2254"]
[Annotator "RC"]
[PlyCount "70"]
[EventDate "2024.11.10"]
[EventType "swiss"]
[EventCountry "TUR"]
[SourceTitle "playchess.com"]
[Source "ChessBase"]
[SourceQuality "1"]
[TimeControl "5400+30"]

1. d4 {[%emt 0:01:00]} Nf6 {[%emt 0:01:00]} 2. c4 {[%emt 0:00:30]} e6 {[%emt 0:00:00]} 3. g3 {[%emt 0:00:30]} d5 {[%emt 0:00:00]} 4. Nf3 {[%emt 0:00:30]} Bb4+ {[%emt 0:00:30]} 5. Bd2 {[%emt 0:00:30]} Be7 {[%emt 0:00:00]} 6. Bg2 {[%emt 0:00:30]} O-O {[%emt 0:00:00]} 7. O-O {[%emt 0:01:30]} c6 {[%emt 0:00:30]} 8. Qc2 {[%emt 0:00:00]} Nbd7 {[%emt 0:01:30]} 9. b3 {[%emt 0:06:00]} b6 {[%emt 0:01:30]} 10. Nc3 {[%emt 0:06:30]} Ba6 {[%emt 0:04:30]} 11. e4 {[%emt 0:01:30]} dxc4 {[%emt 0:01:30]} 12. Rfd1 {[%emt 0:03:30]} Rc8 {[%emt 0:16:30]} 13. Bf4 {[%emt 0:11:30]} Re8 {[%emt 0:14:30]} 14. Nd2 {[%emt 0:12:30]} c5 {[%emt 0:05:30]} 15. d5 {[%emt 0:07:30]} exd5 {[%emt 0:01:30]} 16. e5 {[%emt 0:10:30]} Ng4 {[%emt 0:05:30]} 17. Re1 {[%emt 0:13:30]} Bf8 {[%emt 0:13:30]} 18. Qf5 {[%emt 0:04:04]} Ngxe5 {[%emt 0:04:30]} 19. Bxe5 {[%emt 0:04:17]} Rxe5 {[%emt 0:01:30]} 20. Rxe5 {[%emt 0:05:32]} g6 {[%emt 0:01:30]} 21. Qf4 {[%emt 0:01:44]} Nxe5 {[%emt 0:01:30]} 22. Bxd5 {[%emt 0:01:22]} Bg7 {[%emt 0:02:30]} 23. Re1 {[%emt 0:02:51]} Qf6 {[%emt 0:09:34]} 24. Qxf6 {[%emt 0:01:16]} Bxf6 {[%emt 0:00:04]} 25. Nce4 {[%emt 0:02:00]} Bg7 {[%emt 0:01:50]} 26. bxc4 {[%emt 0:00:18]} Rd8 {[%emt 0:00:07]} 27. Re3 {[%emt 0:00:40]} b5 {[%emt 0:05:52]} 28. Nxc5 {[%emt 0:01:08]} bxc4 {[%emt 0:01:28]} 29. Nxa6 {[%emt 0:00:37]} Rxd5 {[%emt 0:00:09]} 30. Ne4 {[%emt 0:00:28]} Nd3 {[%emt 0:01:46]} 31. Nc7 {[%emt 0:00:30]} Rd8 {[%emt 0:01:04]} 32. Nb5 {[%emt 0:00:43]} a6 {[%emt 0:00:38]} 33. Nbc3 {[%emt 0:00:30]} f5 {[%emt 0:00:44]} 34. Nd2 {[%emt 0:00:36]} Bxc3 {[%emt 0:00:53]} 35. Nxc4 {[%emt 0:00:04]} Bd4 {[%emt 0:00:45]} 0-1